fUST/lending_fUST_20240510
["ID","MTS","AMOUNT","RATE_DAILY","PERIOD"]
[326758485,1715322587549,198.457078,0.00016995,2]
[326758486,1715322589933,275.73,0.00010959,2]
[326758487,1715322600486,229.77,0.00010959,2]
[326758488,1715322611031,191.48,0.00010959,2]
[326758489,1715322621593,159.56,0.00010959,2]
[326758497,1715322632095,797.84,0.00010959,2]
[326758501,1715322632445,-171.11304447,0.00017736,2]
[326758503,1715322632454,-381.61189641,0.00017834,2]
[326758513,1715322632545,-709.01499169,0.00017834,2]
[326758515,1715322632557,-534.602378,0.00017834,2]
[326758517,1715322632572,-1832.47266376,0.00017834,2]
[326758519,1715322632582,-1894.91130728,0.00017834,2]
[326758521,1715322632591,-236.2098159,0.00017834,2]
[326758522,1715322632600,-904.53581118,0.00017835,2]
[326758523,1715322632609,-701.56842891,0.00017836,2]
[326758524,1715322632618,-1042.0,0.00017836,2]
[326758525,1715322632628,-154.7215013,0.00017837,2]
[326758526,1715322632637,-154.7215013,0.00017837,2]
[326758527,1715322632646,-584.12961058,0.00017838,3]
[326758528,1715322632655,-7884.1916548,0.00017936,2]
[326758529,1715322632664,-62525.03509015,0.0001794,2]
[326758530,1715322632676,-803.13073405,0.00017955,2]
[326758532,1715322632685,-2980.4397772,0.00018055,2]
[326758534,1715322632694,-196.68406566,0.00018125,2]
[326758535,1715322632703,-43728.72840668,0.00018126,2]
[326758537,1715322632712,-151.0,0.00018127,2]
[326758539,1715322632721,-632.575072,0.00018127,2]
[326758541,1715322632730,-151.0,0.00018127,2]
[326758543,1715322632740,-632.575072,0.00018127,2]
[326758545,1715322632749,-151.0,0.00018127,2]
[326758547,1715322632759,-181.884494,0.00018127,2]
[326758549,1715322632768,-181.884494,0.00018127,2]
[326758551,1715322632777,-24900.0,0.00018127,2]
[326758552,1715322632787,-15409.21854083,0.00018548,2]
[326758553,1715322632796,-151.0,0.00018548,2]
[326758554,1715322632805,-632.575072,0.00018548,2]
[326758555,1715322632814,-151.0,0.00018548,2]
[326758556,1715322632824,-632.575072,0.00018548,2]
[326758557,1715322632832,-151.0,0.00018548,2]
[326758558,1715322632842,-1480.324459,0.00018548,2]
[326758559,1715322632851,-1480.324459,0.00018548,2]
[326758560,1715322632860,-961.567822,0.00018548,2]
[326758561,1715322632869,-1792.07404,0.00018548,2]
[326758562,1715322632878,-961.567822,0.00018548,2]
[326758563,1715322632887,-1792.07404,0.00018548,2]
[326758564,1715322632896,-181.884494,0.00018548,2]
[326758565,1715322632907,-181.884494,0.00018548,2]
[326758566,1715322632916,-151.0,0.00018548,2]
[326758567,1715322632927,-191.124618,0.00018548,2]
[326758568,1715322632936,-151.0,0.00018548,2]
[326758569,1715322632945,-151.0,0.00018548,2]
[326758570,1715322632954,-1020.5032329,0.00018696,2]
[326758571,1715322632963,-1276.8445777,0.00018748,2]
[326758572,1715322632972,-181.884494,0.00018748,2]
[326758573,1715322632981,-181.884494,0.00018748,2]
[326758574,1715322632990,-575.19735906,0.000189,2]
[326758575,1715322632999,-151.0,0.00019178,2]
[326758576,1715322633008,-176.075506,0.00019178,2]
[326758577,1715322633017,-548.026713,0.00019622,2]
[326758578,1715322633026,-775.37799025,0.00019699,2]
[326758579,1715322633035,-151.0,0.00019731,2]
[326758580,1715322633044,-632.575072,0.00019731,2]
[326758581,1715322633053,-151.0,0.00019731,2]
[326758582,1715322633062,-632.575072,0.00019731,2]
[326758583,1715322633072,-151.0,0.00019731,2]
[326758584,1715322633081,-1480.324459,0.00019731,2]
[326758585,1715322633090,-1480.324459,0.00019731,2]
[326758586,1715322633099,-1480.324459,0.00019731,2]
[326758587,1715322633108,-1480.324459,0.00019731,2]
[326758588,1715322633118,-961.567822,0.00019731,2]
[326758589,1715322633127,-961.567822,0.00019731,2]
[326758590,1715322633136,-1792.07404,0.00019731,2]
[326758591,1715322633149,-1792.07404,0.00019731,2]
[326758592,1715322633161,-961.567822,0.00019731,2]
[326758593,1715322633172,-961.567822,0.00019731,2]
[326758594,1715322633182,-1792.07404,0.00019731,2]
[326758595,1715322633191,-1792.07404,0.00019731,2]
[326758596,1715322633203,-181.884494,0.00019731,2]
[326758597,1715322633212,-181.884494,0.00019731,2]
[326758598,1715322633221,-181.884494,0.00019731,2]
[326758599,1715322633232,-181.884494,0.00019731,2]
[326758600,1715322633241,-151.0,0.00019731,2]
[326758601,1715322633251,-151.0,0.00019731,2]
[326758602,1715322633260,-151.0,0.00019731,2]
[326758603,1715322633269,-21694.1631672,0.00019731,2]
[326758604,1715322633279,-795.6177121,0.00019831,2]
[326758605,1715322633288,-16274.33295857,0.0002,2]
[326758606,1715322633297,-709.661595,0.0002,2]
[326758607,1715322633307,-709.661595,0.0002,2]
[326758608,1715322633318,-161.09901,0.0002,2]
[326758609,1715322633327,-161.09901,0.0002,2]
[326758610,1715322633337,-151.0,0.0002,2]
[326758611,1715322633346,-1143.85806,0.0002,2]
[326758612,1715322633355,-1143.85806,0.0002,2]
[326758613,1715322633364,-151.0,0.0002,2]
[326758614,1715322633373,-151.0,0.0002,2]
[326758615,1715322633382,-632.575072,0.0002,2]
[326758616,1715322633391,-151.0,0.0002,2]
[326758617,1715322633400,-632.575072,0.0002,2]
[326758618,1715322633465,-151.0,0.0002,2]
[326758619,1715322633474,-1480.324459,0.0002,2]
[326758620,1715322633483,-1480.324459,0.0002,2]
[326758621,1715322633492,-961.567822,0.0002,2]
[326758622,1715322633501,-1792.07404,0.0002,2]
[326758623,1715322633511,-961.567822,0.0002,2]
[326758624,1715322633520,-1792.07404,0.0002,2]
[326758625,1715322633529,-181.884494,0.0002,2]
[326758626,1715322633538,-181.884494,0.0002,2]
[326758627,1715322633548,-181.884494,0.0002,2]
[326758628,1715322633558,-181.884494,0.0002,2]
[326758629,1715322633567,-306.45536535,0.00020191,2]
[326758630,1715322633576,-250.0,0.00020291,2]
[326758631,1715322633585,-1480.324459,0.00020291,2]
[326758632,1715322633594,-1480.324459,0.00020291,2]
[326758633,1715322633603,-961.567822,0.00020291,2]
[326758634,1715322633612,-1792.07404,0.00020291,2]
[326758635,1715322633621,-961.567822,0.00020291,2]
[326758636,1715322633630,-1792.07404,0.00020291,2]
[326758637,1715322633639,-937.05212562,0.00020794,2]
[326758638,1715322633648,-267.37999029,0.00020912,2]
[326758639,1715322633657,-250.30586546,0.00020912,2]
[326758640,1715322633668,-155.68209558,0.00020912,2]
[326758641,1715322633677,-230.00529736,0.00020912,2]
[326758642,1715322633686,-155.34621447,0.00020912,2]
[326758643,1715322633695,-171.96706206,0.00020912,2]
[326758644,1715322633704,-267.33990808,0.00020912,2]
[326758645,1715322633713,-317.66597571,0.00020912,2]
[326758646,1715322633722,-617.10126124,0.00020912,2]
[326758647,1715322633731,-470.75279812,0.00020912,2]
[326758648,1715322633741,-181.884494,0.00020912,2]
[326758649,1715322633750,-181.884494,0.00020912,2]
[326758650,1715322633759,-652.9,0.00021298,2]
[326758651,1715322633769,-289.117627,0.00021445,2]
[326758652,1715322633778,-632.575072,0.00021445,2]
[326758653,1715322633788,-151.0,0.00021445,2]
[326758654,1715322633798,-632.575072,0.00021445,2]
[326758655,1715322633808,-151.0,0.00021445,2]
[326758656,1715322633818,-155.78423505,0.00021658,2]
[326758657,1715322633827,-1480.324459,0.00021658,2]
[326758658,1715322633836,-1480.324459,0.00021658,2]
[326758659,1715322633845,-961.567822,0.00021658,2]
[326758660,1715322633855,-1792.07404,0.00021658,2]
[326758661,1715322633871,-961.567822,0.00021658,2]
[326758662,1715322633887,-1792.07404,0.00021658,2]
[326758663,1715322633903,-181.884494,0.00021658,2]
[326758664,1715322633924,-181.884494,0.00021658,2]
[326758665,1715322633945,-226.74571426,0.00021671,2]
[326758666,1715322633961,-169.34684121,0.00021788,2]
[326758667,1715322633978,-169.3468412,0.00021789,2]
[326758668,1715322633992,-1480.324459,0.00021789,2]
[326758669,1715322634007,-1480.324459,0.00021789,2]
[326758670,1715322634025,-961.567822,0.00021789,2]
[326758671,1715322634045,-1792.07404,0.00021789,2]
[326758672,1715322634058,-961.567822,0.00021789,2]
[326758673,1715322634071,-1792.07404,0.00021789,2]
[326758674,1715322634088,-181.884494,0.00021789,2]
[326758675,1715322634101,-181.884504,0.00021789,2]
[326758676,1715322634116,-55555.0,0.00021789,3]
[326758677,1715322634128,-169.3468412,0.00021789,2]
[326758678,1715322634142,-169.3468412,0.0002179,2]
[326758679,1715322634161,-709.661595,0.00021878,2]
[326758680,1715322634176,-709.661595,0.00021878,2]
[326758681,1715322634191,-161.09901,0.00021878,2]
[326758682,1715322634206,-161.09901,0.00021878,2]
[326758683,1715322634221,-151.0,0.00021878,2]
[326758684,1715322634238,-1143.85806,0.00021878,2]
[326758685,1715322634252,-1143.85806,0.00021878,2]
[326758686,1715322634265,-151.0,0.00021878,2]
[326758687,1715322634279,-1374.31351278,0.00021885,2]
[326758688,1715322634294,-235.05468866,0.00021885,2]
[326758689,1715322634308,-270.12249713,0.00021885,2]
[326758690,1715322634322,-632.575072,0.00021885,2]
[326758691,1715322634336,-153.597826,0.00021885,2]
[326758692,1715322634351,-632.575072,0.00021885,2]
[326758693,1715322634364,-151.0,0.00021885,2]
[326758694,1715322634378,-1480.324459,0.00021885,2]
[326758695,1715322634391,-1480.324459,0.00021885,2]
[326758696,1715322634405,-961.567822,0.00021885,2]
[326758697,1715322634419,-1792.07404,0.00021885,2]
[326758698,1715322634433,-961.567822,0.00021885,2]
[326758699,1715322634446,-1792.07404,0.00021885,2]
[326758700,1715322634460,-782.99427827,0.00021886,2]
[326758701,1715322634474,-1054.08384533,0.00021886,2]
[326758702,1715322634489,-269.27711768,0.00021887,2]
[326758703,1715322634576,-709.661595,0.00021887,2]
[326758704,1715322634586,-709.661595,0.00021887,2]
[326758705,1715322634595,-161.09901,0.00021887,2]
[326758706,1715322634605,-161.09901,0.00021887,2]
[326758707,1715322634614,-151.0,0.00021887,2]
[326758708,1715322634623,-1143.85806,0.00021887,2]
[326758709,1715322634633,-1143.85806,0.00021887,2]
[326758710,1715322634642,-151.0,0.00021887,2]
[326758711,1715322634651,-1480.324459,0.00021887,2]
[326758712,1715322634660,-1480.324459,0.00021887,2]
[326758713,1715322634669,-961.567822,0.00021887,2]
[326758714,1715322634678,-1792.07404,0.00021887,2]
[326758715,1715322634687,-961.567822,0.00021887,2]
[326758716,1715322634697,-1792.07404,0.00021887,2]
[326758717,1715322634706,-284.48593494,0.00021888,2]
[326758718,1715322634715,-411.00122083,0.00021888,2]
[326758719,1715322634723,-30189.85778992,0.00021888,2]
[326758720,1715322634733,-718.70282773,0.00021888,2]
[326758721,1715322634742,-2104.38388456,0.00021888,2]
[326758722,1715322634751,-491.91161374,0.00021888,2]
[326758723,1715322634761,-292.88929834,0.00021888,2]
[326758724,1715322634771,-1340.53437964,0.00021888,2]
[326758725,1715322634780,-356.78679677,0.00021888,2]
[326758726,1715322634791,-818.71822477,0.00021888,2]
[326758727,1715322634799,-709.661595,0.00021888,2]
[326758728,1715322634808,-709.661595,0.00021888,2]
[326758729,1715322634818,-709.661595,0.00021888,2]
[326758730,1715322634827,-709.661595,0.00021888,2]
[326758731,1715322634836,-709.661595,0.00021888,2]
[326758732,1715322634845,-709.661595,0.00021888,2]
[326758733,1715322634855,-161.09901,0.00021888,2]
[326758734,1715322634865,-161.09901,0.00021888,2]
[326758735,1715322634875,-161.09901,0.00021888,2]
[326758736,1715322634884,-161.09901,0.00021888,2]
[326758737,1715322634893,-161.09901,0.00021888,2]
[326758738,1715322634903,-161.09901,0.00021888,2]
[326758739,1715322634912,-151.0,0.00021888,2]
[326758740,1715322634922,-151.0,0.00021888,2]
[326758741,1715322634931,-151.0,0.00021888,2]
[326758742,1715322634941,-1143.85806,0.00021888,2]
[326758743,1715322634950,-1143.85806,0.00021888,2]
[326758744,1715322634959,-1143.85806,0.00021888,2]
[326758745,1715322634969,-1143.85806,0.00021888,2]
[326758746,1715322634978,-1143.85806,0.00021888,2]
[326758747,1715322634987,-1143.85806,0.00021888,2]
[326758748,1715322634997,-151.0,0.00021888,2]
[326758749,1715322635006,-151.0,0.00021888,2]
[326758750,1715322635015,-151.0,0.00021888,2]
[326758751,1715322635024,-632.575072,0.00021888,2]
[326758752,1715322635033,-632.575072,0.00021888,2]
[326758753,1715322635042,-632.575072,0.00021888,2]
[326758754,1715322635052,-632.575072,0.00021888,2]
[326758755,1715322635061,-151.0,0.00021888,2]
[326758756,1715322635071,-1480.324459,0.00021888,2]
[326758757,1715322635080,-1480.324453,0.00021888,2]
[326758758,1715322635089,-961.567822,0.00021888,2]
[326758759,1715322635098,-1792.07404,0.00021888,2]
[326758760,1715322635107,-961.567829,0.00021888,2]
[326758761,1715322635116,-1792.074049,0.00021888,2]
[326758762,1715322635125,-39468.43907995,0.00021889,2]
[326758763,1715322635134,-709.661595,0.00021889,2]
[326758764,1715322635144,-709.661595,0.00021889,2]
[326758765,1715322635158,-161.09901,0.00021889,2]
[326758766,1715322635168,-161.09901,0.00021889,2]
[326758767,1715322635177,-1143.85806,0.00021889,2]
[326758768,1715322635186,-1143.85806,0.00021889,2]
[326758769,1715322635195,-151.0,0.00021889,2]
[326758770,1715322635204,-632.575072,0.00021889,2]
[326758771,1715322635214,-632.575072,0.00021889,2]
[326758772,1715322635226,-151.0,0.0002189,2]
[326758773,1715322635235,-217.611997,0.0002189,2]
[326758774,1715322635244,-151.0,0.0002189,2]
[326758775,1715322635254,-151.0,0.0002189,2]
[326758776,1715322635263,-151.0,0.0002189,2]
[326758777,1715322635272,-151.0,0.0002189,2]
[326758778,1715322635281,-245.4984,0.0002189,2]
[326758779,1715322635291,-317.62661,0.0002189,2]
[326758780,1715322635300,-317.62661,0.0002189,2]
[326758781,1715322635310,-317.62661,0.0002189,2]
[326758782,1715322635319,-317.62661,0.0002189,2]
[326758783,1715322635328,-317.62661,0.0002189,2]
[326758784,1715322635338,-317.62661,0.0002189,2]
[326758785,1715322635347,-317.62661,0.0002189,2]
[326758786,1715322635356,-317.62661,0.0002189,2]
[326758787,1715322635365,-317.62661,0.0002189,2]
[326758788,1715322635375,-317.62661,0.0002189,2]
[326758789,1715322635384,-317.62661,0.0002189,2]
[326758790,1715322635393,-317.62661,0.0002189,2]
[326758791,1715322635402,-317.62661,0.0002189,2]
[326758792,1715322635412,-317.62661,0.0002189,2]
[326758793,1715322635470,-317.62661,0.0002189,2]
[326758794,1715322635484,-317.62661,0.0002189,2]
[326758795,1715322635493,-317.62661,0.0002189,2]
[326758796,1715322635502,-317.62661,0.0002189,2]
[326758797,1715322635512,-317.62661,0.0002189,2]
[326758798,1715322635521,-317.626614,0.0002189,2]
[326758799,1715322635530,-151.0,0.0002189,2]
[326758800,1715322635539,-151.0,0.0002189,2]
[326758801,1715322635550,-151.0,0.0002189,2]
[326758802,1715322635559,-151.0,0.0002189,2]
[326758803,1715322635569,-151.0,0.0002189,2]
[326758804,1715322635577,-151.0,0.0002189,2]
[326758805,1715322635587,-151.0,0.0002189,2]
[326758806,1715322635596,-151.0,0.0002189,2]
[326758807,1715322635605,-151.0,0.0002189,2]
[326758808,1715322635615,-151.0,0.0002189,2]
[326758809,1715322635624,-151.0,0.0002189,2]
[326758810,1715322635633,-151.0,0.0002189,2]
[326758811,1715322635643,-151.0,0.0002189,2]
[326758812,1715322635652,-212.901238,0.0002189,2]
[326758813,1715322635662,-151.0,0.0002189,2]
[326758814,1715322635672,-151.0,0.0002189,2]
[326758815,1715322635681,-151.0,0.0002189,2]
[326758816,1715322635691,-151.0,0.0002189,2]
[326758817,1715322635700,-151.0,0.0002189,2]
[326758818,1715322635709,-151.0,0.0002189,2]
[326758819,1715322635718,-151.0,0.0002189,2]
[326758820,1715322635727,-151.0,0.0002189,2]
[326758821,1715322635736,-151.0,0.0002189,2]
[326758822,1715322635745,-151.0,0.0002189,2]
[326758823,1715322635754,-151.0,0.0002189,2]
[326758824,1715322635763,-151.0,0.0002189,2]
[326758825,1715322635773,-151.0,0.0002189,2]
[326758826,1715322635782,-151.0,0.0002189,2]
[326758827,1715322635791,-151.0,0.0002189,2]
[326758828,1715322635800,-287.497943,0.0002189,2]
[326758829,1715322635809,-151.0,0.0002189,2]
[326758830,1715322635818,-151.0,0.0002189,2]
[326758831,1715322635827,-151.0,0.0002189,2]
[326758832,1715322635836,-151.0,0.0002189,2]
[326758833,1715322635845,-151.0,0.0002189,2]
[326758834,1715322635854,-151.0,0.0002189,2]
[326758835,1715322635863,-151.0,0.0002189,2]
[326758836,1715322635873,-151.0,0.0002189,2]
[326758837,1715322635882,-287.703206,0.0002189,2]
[326758838,1715322635892,-349.864199,0.0002189,2]
[326758839,1715322635901,-349.864199,0.0002189,2]
[326758840,1715322635910,-349.864199,0.0002189,2]
[326758841,1715322635919,-349.864199,0.0002189,2]
[326758842,1715322635929,-349.864199,0.0002189,2]
[326758843,1715322635938,-349.864199,0.0002189,2]
[326758844,1715322635947,-349.864199,0.0002189,2]
[326758845,1715322635956,-349.864199,0.0002189,2]
[326758846,1715322635965,-349.864199,0.0002189,2]
[326758847,1715322635974,-349.864199,0.0002189,2]
[326758848,1715322635983,-349.864199,0.0002189,2]
[326758849,1715322635992,-349.864199,0.0002189,2]
[326758850,1715322636001,-349.864199,0.0002189,2]
[326758851,1715322636010,-349.864199,0.0002189,2]
[326758852,1715322636020,-349.864199,0.0002189,2]
[326758853,1715322636029,-349.864199,0.0002189,2]
[326758854,1715322636038,-349.864199,0.0002189,2]
[326758855,1715322636047,-349.864199,0.0002189,2]
[326758856,1715322636056,-349.864199,0.0002189,2]
[326758857,1715322636066,-349.864195,0.0002189,2]
[326758858,1715322636076,-151.0,0.0002189,2]
[326758859,1715322636085,-151.0,0.0002189,2]
[326758860,1715322636094,-151.0,0.0002189,2]
[326758861,1715322636103,-151.0,0.0002189,2]
[326758862,1715322636112,-151.0,0.0002189,2]
[326758863,1715322636121,-151.0,0.0002189,2]
[326758864,1715322636130,-151.0,0.0002189,2]
[326758865,1715322636139,-151.0,0.0002189,2]
[326758866,1715322636150,-151.0,0.0002189,2]
[326758867,1715322636160,-151.0,0.0002189,2]
[326758868,1715322636170,-151.0,0.0002189,2]
[326758869,1715322636179,-151.0,0.0002189,2]
[326758870,1715322636189,-151.0,0.0002189,2]
[326758871,1715322636200,-151.0,0.0002189,2]
[326758872,1715322636209,-151.0,0.0002189,2]
[326758873,1715322636218,-151.0,0.0002189,2]
[326758874,1715322636229,-279.601809,0.0002189,2]
[326758875,1715322636239,-1363.710023,0.0002189,2]
[326758876,1715322636248,-1363.710023,0.0002189,2]
[326758877,1715322636257,-1363.710023,0.0002189,2]
[326758878,1715322636266,-1363.710023,0.0002189,2]
[326758879,1715322636275,-1363.710023,0.0002189,2]
[326758880,1715322636284,-1363.710023,0.0002189,2]
[326758881,1715322636294,-1363.710023,0.0002189,2]
[326758882,1715322636303,-1363.710023,0.0002189,2]
[326758883,1715322636313,-1363.710023,0.0002189,2]
[326758884,1715322636322,-1363.710023,0.0002189,2]
[326758885,1715322636331,-1363.710023,0.0002189,2]
[326758886,1715322636340,-1363.710023,0.0002189,2]
[326758887,1715322636350,-1363.710023,0.0002189,2]
[326758888,1715322636359,-1363.710023,0.0002189,2]
[326758889,1715322636368,-1363.710023,0.0002189,2]
[326758890,1715322636377,-1363.710023,0.0002189,2]
[326758891,1715322636387,-1363.710023,0.0002189,2]
[326758892,1715322636396,-1363.710023,0.0002189,2]
[326758893,1715322636405,-1363.710023,0.0002189,2]
[326758894,1715322636414,-1363.71001407,0.0002189,2]
[326758895,1715322636425,-151.0,0.0002189,2]
[326758896,1715322636434,-261.015183,0.0002189,2]
[326758897,1715322636445,-151.0,0.0002189,2]
[326758898,1715322636454,-151.0,0.0002189,2]
[326758899,1715322636463,-151.0,0.0002189,2]
[326758900,1715322636472,-151.0,0.0002189,2]
[326758901,1715322636482,-301.506323,0.0002189,2]
[326758902,1715322636491,-151.0,0.0002189,2]
[326758903,1715322636500,-151.0,0.0002189,2]
[326758904,1715322636510,-151.0,0.0002189,2]
[326758905,1715322636519,-151.0,0.0002189,2]
[326758906,1715322636529,-151.0,0.0002189,2]
[326758907,1715322636539,-151.0,0.0002189,2]
[326758908,1715322636548,-249.534543,0.0002189,2]
[326758909,1715322636557,-151.0,0.0002189,2]
[326758910,1715322636567,-151.0,0.0002189,2]
[326758911,1715322636576,-151.0,0.0002189,2]
[326758912,1715322636585,-151.0,0.0002189,2]
[326758913,1715322636594,-151.0,0.0002189,2]
[326758914,1715322636603,-151.0,0.0002189,2]
[326758915,1715322636612,-151.0,0.0002189,2]
[326758916,1715322636622,-151.0,0.0002189,2]
[326758917,1715322636631,-151.0,0.0002189,2]
[326758918,1715322636640,-151.0,0.0002189,2]
[326758919,1715322636649,-276.509257,0.0002189,2]
[326758920,1715322636658,-278.365441,0.0002189,2]
[326758921,1715322636667,-278.365441,0.0002189,2]
[326758922,1715322636678,-278.365441,0.0002189,2]
[326758923,1715322636687,-278.365441,0.0002189,2]
[326758924,1715322636696,-278.365441,0.0002189,2]
[326758925,1715322636706,-278.365441,0.0002189,2]
[326758926,1715322636715,-278.365441,0.0002189,2]
[326758927,1715322636724,-278.365441,0.0002189,2]
[326758928,1715322636733,-278.365441,0.0002189,2]
[326758929,1715322636743,-278.365441,0.0002189,2]
[326758930,1715322636752,-278.365441,0.0002189,2]
[326758931,1715322636761,-278.365441,0.0002189,2]
[326758932,1715322636771,-278.365441,0.0002189,2]
[326758933,1715322636780,-278.365441,0.0002189,2]
[326758934,1715322636790,-278.365441,0.0002189,2]
[326758935,1715322636799,-278.365441,0.0002189,2]
[326758936,1715322636808,-278.365441,0.0002189,2]
[326758937,1715322636817,-278.365441,0.0002189,2]
[326758938,1715322636826,-278.365441,0.0002189,2]
[326758939,1715322636835,-278.365438,0.0002189,2]
[326758940,1715322636844,-219.601559,0.0002189,2]
[326758941,1715322636853,-219.601559,0.0002189,2]
[326758942,1715322636863,-219.601559,0.0002189,2]
[326758943,1715322636872,-219.601559,0.0002189,2]
[326758944,1715322636881,-219.601559,0.0002189,2]
[326758945,1715322636890,-219.601559,0.0002189,2]
[326758946,1715322636900,-219.601559,0.0002189,2]
[326758947,1715322636909,-219.601559,0.0002189,2]
[326758948,1715322636918,-219.601559,0.0002189,2]
[326758949,1715322636927,-219.601559,0.0002189,2]
[326758950,1715322636937,-219.601559,0.0002189,2]
[326758951,1715322636946,-219.601559,0.0002189,2]
[326758952,1715322636956,-219.601559,0.0002189,2]
[326758953,1715322636966,-219.601559,0.0002189,2]
[326758954,1715322636976,-151.0,0.0002189,2]
[326758955,1715322636986,-151.0,0.0002189,2]
[326758956,1715322636995,-231.737692,0.0002189,2]
[326758957,1715322637004,-219.601559,0.0002189,2]
[326758958,1715322637014,-219.601559,0.0002189,2]
[326758959,1715322637023,-219.601559,0.0002189,2]
[326758960,1715322637033,-219.601559,0.0002189,2]
[326758961,1715322637042,-219.601559,0.0002189,2]
[326758962,1715322637051,-219.60156,0.0002189,2]
[326758963,1715322637061,-951.673432,0.0002189,2]
[326758964,1715322637070,-951.673432,0.0002189,2]
[326758965,1715322637079,-951.673432,0.0002189,2]
[326758966,1715322637089,-951.673432,0.0002189,2]
[326758967,1715322637098,-951.673432,0.0002189,2]
[326758968,1715322637108,-951.673432,0.0002189,2]
[326758969,1715322637117,-951.673432,0.0002189,2]
[326758970,1715322637127,-951.673432,0.0002189,2]
[326758971,1715322637136,-951.673432,0.0002189,2]
[326758972,1715322637146,-951.673432,0.0002189,2]
[326758973,1715322637159,-951.673432,0.0002189,2]
[326758974,1715322637168,-951.673432,0.0002189,2]
[326758975,1715322637178,-951.673432,0.0002189,2]
[326758976,1715322637188,-951.673432,0.0002189,2]
[326758977,1715322637199,-951.673432,0.0002189,2]
[326758978,1715322637208,-951.673432,0.0002189,2]
[326758979,1715322637217,-951.673432,0.0002189,2]
[326758980,1715322637227,-951.673432,0.0002189,2]
[326758981,1715322637236,-951.673432,0.0002189,2]
[326758982,1715322637247,-951.673435,0.0002189,2]
[326758983,1715322637256,-709.661595,0.0002189,2]
[326758984,1715322637265,-709.661595,0.0002189,2]
[326758985,1715322637275,-709.661595,0.0002189,2]
[326758986,1715322637284,-709.661595,0.0002189,2]
[326758987,1715322637293,-709.661595,0.0002189,2]
[326758988,1715322637303,-709.661602,0.0002189,2]
[326758989,1715322637312,-161.09901,0.0002189,2]
[326758990,1715322637322,-161.09901,0.0002189,2]
[326758991,1715322637331,-161.09901,0.0002189,2]
[326758992,1715322637340,-161.09901,0.0002189,2]
[326758993,1715322637350,-161.09901,0.0002189,2]
[326758994,1715322637359,-161.099012,0.0002189,2]
[326758995,1715322637368,-1143.85806,0.0002189,2]
[326758996,1715322637377,-1143.85806,0.0002189,2]
[326758997,1715322637387,-1143.85806,0.0002189,2]
[326758998,1715322637396,-1143.85806,0.0002189,2]
[326758999,1715322637405,-1143.85806,0.0002189,2]
[326759000,1715322637415,-1143.858063,0.0002189,2]
[326759001,1715322637424,-151.0,0.0002189,2]
[326759002,1715322637433,-151.0,0.0002189,2]
[326759003,1715322637443,-288.48448,0.0002189,2]
[326759004,1715322637452,-632.575072,0.0002189,2]
[326759005,1715322637542,-632.57508,0.0002189,2]
[326759006,1715322637552,-589.0,0.000219,2]
[326759007,1715322637561,-225.0,0.00021918,2]
[326759008,1715322637571,-166.666666,0.00021918,2]
[326759009,1715322637581,-530.938567,0.00021918,2]
[326759010,1715322637590,-530.938567,0.00021918,2]
[326759011,1715322637599,-530.938567,0.00021918,2]
[326759012,1715322637608,-530.938567,0.00021918,2]
[326759013,1715322637617,-530.938567,0.00021918,2]
[326759014,1715322637627,-530.938567,0.00021918,2]
[326759015,1715322637636,-530.938567,0.00021918,2]
[326759016,1715322637645,-530.938567,0.00021918,2]
[326759017,1715322637654,-530.938567,0.00021918,2]
[326759018,1715322637663,-530.938567,0.00021918,2]